[Event "Israeli U18-Team-ch 2024"]
[Site "Rishon LeZion"]
[Date "2024.08.01"]
[Round "1.11"]
[White "Linik, Daniel"]
[Black "Duchan, Yoav"]
[Result "0-1"]
[ECO "A41"]
[WhiteElo "1733"]
[BlackElo "2008"]
[Annotator "RC"]
[PlyCount "154"]
[EventDate "2024.08.01"]
[EventType "team-tourn"]
[EventCountry "ISR"]
[SourceTitle "playchess.com"]
[Source "ChessBase"]
[SourceQuality "1"]
[TimeControl "3000+10"]

1. d4 {[%emt 0:00:13]} g6 {[%emt 0:00:03]} 2. Nf3 {[%emt 0:00:18]} Bg7 {[%emt 0:00:05]} 3. g3 {[%emt 0:00:13]} d6 {[%emt 0:00:04]} 4. Bg2 {[%emt 0:00:11]} Nc6 {[%emt 0:00:03]} 5. O-O {[%emt 0:00:49]} Bd7 {[%emt 0:00:03]} 6. c3 {[%emt 0:02:50]} Qc8 {[%emt 0:00:20]} 7. e4 {[%emt 0:03:02]} Bh3 {[%emt 0:02:11]} 8. Bxh3 {[%emt 0:00:51]} Qxh3 {[%emt 0:00:07]} 9. Ng5 {[%emt 0:00:05]} Qc8 {[%emt 0:00:38]} 10. Qb3 {[%emt 0:01:19]} Nd8 {[%emt 0:03:47]} 11. f4 {[%emt 0:01:56]} h6 {[%emt 0:00:52]} 12. Nf3 {[%emt 0:00:31]} Nf6 {[%emt 0:01:48]} 13. e5 {[%emt 0:03:05]} Nh7 {[%emt 0:02:48]} 14. Qa4+ {[%emt 0:01:20]} Qd7 {[%emt 0:02:23]} 15. Qxd7+ {[%emt 0:00:10]} Kxd7 {[%emt 0:00:01]} 16. Nbd2 {[%emt 0:00:19]} e6 {[%emt 0:02:26]} 17. b4 {[%emt 0:05:08]} Bf8 {[%emt 0:03:29]} 18. Bb2 {[%emt 0:00:23]} d5 {[%emt 0:02:00]} 19. Nb3 {[%emt 0:01:02]} b6 {[%emt 0:04:03]} 20. a4 {[%emt 0:00:35]} a6 {[%emt 0:02:41]} 21. b5 {[%emt 0:02:41]} Nb7 {[%emt 0:02:59]} 22. Nfd2 {[%emt 0:00:34]} Be7 {[%emt 0:03:16]} 23. c4 {[%emt 0:00:11]} dxc4 {[%emt 0:02:59]} 24. Nxc4 {[%emt 0:00:10]} Rhd8 {[%emt 0:01:30]} 25. Ne3 {[%emt 0:04:39]} Ke8 {[%emt 0:00:40]} 26. Rfc1 {[%emt 0:00:16]} Rd7 {[%emt 0:00:34]} 27. bxa6 {[%emt 0:01:01]} Rxa6 {[%emt 0:00:14]} 28. Rc4 {[%emt 0:00:05]} Na5 {[%emt 0:02:45]} 29. Nxa5 {[%emt 0:00:14]} Rxa5 {[%emt 0:00:20]} 30. Rac1 {[%emt 0:00:12]} c5 {[%emt 0:02:02]} 31. Kg2 {[%emt 0:05:35]} Nf8 {[%emt 0:00:35]} 32. R1c2 {[%emt 0:01:16]} Rda7 {[%emt 0:02:21]} 33. dxc5 {[%emt 0:00:49]} bxc5 {[%emt 0:01:39]} 34. R4c3 {[%emt 0:01:11]} Rxa4 {[%emt 0:00:34]} 35. Nc4 {[%emt 0:02:05]} Nd7 {[%emt 0:00:09]} 36. Rb3 {[%emt 0:02:19]} Rb4 {[%emt 0:02:19]} 37. Rbc3 {[%emt 0:02:59]} Rb8 {[%emt 0:01:15]} 38. Bc1 {[%emt 0:00:49]} Rc7 {[%emt 0:00:12]} 39. Be3 {[%emt 0:00:11]} Rb5 {[%emt 0:00:11]} 40. Ra3 {[%emt 0:00:01]} Rb8 {[%emt 0:00:06]} 41. g4 {[%emt 0:00:14]} Nb6 {[%emt 0:00:13]} 42. Rb3 {[%emt 0:00:06]} Nd7 {[%emt 0:00:06]} 43. Rcb2 {[%emt 0:00:18]} Rcc8 {[%emt 0:00:07]} 44. Kf3 {[%emt 0:00:41]} Rb4 {[%emt 0:00:04]} 45. Nd6+ {[%emt 0:00:11]} Bxd6 {[%emt 0:00:02]} 46. exd6 {[%emt 0:00:01]} Rc6 {[%emt 0:00:16]} 47. Rxb4 {[%emt 0:00:16]} cxb4 {[%emt 0:00:02]} 48. Rxb4 {[%emt 0:00:01]} Rxd6 {[%emt 0:00:03]} 49. Rb5 {[%emt 0:00:03]} Rd5 {[%emt 0:00:26]} 50. Rb3 {[%emt 0:00:14]} f5 {[%emt 0:00:18]} 51. h3 {[%emt 0:00:01]} fxg4+ {[%emt 0:00:04]} 52. hxg4 {[%emt 0:00:02]} h5 {[%emt 0:00:06]} 53. Ra3 {[%emt 0:00:12]} Rd1 {[%emt 0:00:18]} 54. Bf2 {[%emt 0:00:05]} Rh1 {[%emt 0:00:08]} 55. Ra8+ {[%emt 0:00:10]} Ke7 {[%emt 0:00:07]} 56. Rg8 {[%emt 0:00:02]} hxg4+ {[%emt 0:00:02]} 57. Kg2 {[%emt 0:00:05]} Rh6 {[%emt 0:00:03]} 58. Bd4 {[%emt 0:00:03]} Kd6 {[%emt 0:00:11]} 59. Kg3 {[%emt 0:00:10]} Kd5 {[%emt 0:00:10]} 60. Bg7 {[%emt 0:05:37]} Rh1 {[%emt 0:00:18]} 61. Kxg4 {[%emt 0:00:00]} Ke4 {[%emt 0:00:02]} 62. Rd8 {[%emt 0:00:00]} Rg1+ {[%emt 0:00:14]} 63. Kh3 {[%emt 0:00:00]} Nc5 {[%emt 0:00:11]} 64. Bd4 {[%emt 0:00:00]} Rd1 {[%emt 0:00:05]} 65. Bf6 {[%emt 0:00:00]} Rxd8 {[%emt 0:00:04]} 66. Bxd8 {[%emt 0:00:00]} Kxf4 {[%emt 0:00:58]} 67. Bc7+ {[%emt 0:00:00]} Kf3 {[%emt 0:00:00]} 68. Kh4 {[%emt 0:00:00]} Ne4 {[%emt 0:00:00]} 69. Kh3 {[%emt 0:00:00]} g5 {[%emt 0:00:00]} 70. Kh2 {[%emt 0:00:00]} g4 {[%emt 0:00:00]} 71. Be5 {[%emt 0:00:00]} g3+ {[%emt 0:00:00]} 72. Kg1 {[%emt 0:00:00]} Ng5 {[%emt 0:00:00]} 73. Kh1 {[%emt 0:00:00]} g2+ {[%emt 0:00:03]} 74. Kh2 {[%emt 0:00:00]} Kf2 {[%emt 0:00:20]} 75. Bd4+ {[%emt 0:00:00]} Kf1 {[%emt 0:00:02]} 76. Be3 {[%emt 0:00:00]} Ne4 {[%emt 0:00:17]} 77. Ba7 {[%emt 0:00:00]} Nf2 {[%emt 0:00:06]} 0-1

[Event "Israeli U18-Team-ch 2024"]
[Site "Rishon LeZion"]
[Date "2024.08.01"]
[Round "1.12"]
[White "Gurevich, Neria"]
[Black "Khairova, Evelina"]
[Result "1-0"]
[ECO "D91"]
[WhiteElo "1997"]
[BlackElo "1692"]
[Annotator "RC"]
[PlyCount "75"]
[EventDate "2024.08.01"]
[EventType "team-tourn"]
[EventCountry "ISR"]
[SourceTitle "playchess.com"]
[Source "ChessBase"]
[SourceQuality "1"]
[TimeControl "3000+10"]

1. d4 {[%emt 0:00:03]} d5 {[%emt 0:00:52]} 2. c4 {[%emt 0:00:10]} c6 {[%emt 0:00:05]} 3. Nf3 {[%emt 0:00:30]} Nf6 {[%emt 0:02:53]} 4. Nc3 {[%emt 0:00:37]} g6 {[%emt 0:02:47]} 5. Bg5 {[%emt 0:02:10]} Bg7 {[%emt 0:05:15]} 6. e3 {[%emt 0:00:32]} O-O {[%emt 0:06:48]} 7. Bd3 {[%emt 0:00:54]} b6 {[%emt 0:03:20]} 8. O-O {[%emt 0:01:34]} Nbd7 {[%emt 0:02:17]} 9. e4 {[%emt 0:01:39]} dxe4 {[%emt 0:00:50]} 10. Nxe4 {[%emt 0:00:12]} Bb7 {[%emt 0:01:41]} 11. Re1 {[%emt 0:01:34]} Nxe4 {[%emt 0:01:27]} 12. Bxe4 {[%emt 0:00:32]} Nf6 {[%emt 0:00:11]} 13. Bc2 {[%emt 0:00:06]} e6 {[%emt 0:01:43]} 14. Qe2 {[%emt 0:04:10]} Qc7 {[%emt 0:02:29]} 15. Rad1 {[%emt 0:03:00]} Rad8 {[%emt 0:02:17]} 16. Ne5 {[%emt 0:02:18]} Rfe8 {[%emt 0:01:58]} 17. Qf3 {[%emt 0:01:45]} c5 {[%emt 0:02:38]} 18. d5 {[%emt 0:01:37]} Qe7 {[%emt 0:00:44]} 19. Ng4 {[%emt 0:00:43]} Rd6 {[%emt 0:04:53]} 20. Bxf6 {[%emt 0:01:25]} Qf8 {[%emt 0:00:58]} 21. Bxg7 {[%emt 0:00:14]} Kxg7 {[%emt 0:00:52]} 22. Nf6 {[%emt 0:00:55]} Red8 {[%emt 0:00:43]} 23. Qc3 {[%emt 0:00:40]} e5 {[%emt 0:01:58]} 24. Ne4 {[%emt 0:00:13]} R6d7 {[%emt 0:00:15]} 25. Qxe5+ {[%emt 0:00:11]} f6 {[%emt 0:00:13]} 26. Qc3 {[%emt 0:00:04]} Re8 {[%emt 0:01:48]} 27. Ng5 {[%emt 0:00:33]} Rxe1+ {[%emt 0:00:10]} 28. Rxe1 {[%emt 0:00:05]} Kg8 {[%emt 0:00:11]} 29. Ne6 {[%emt 0:00:15]} Qf7 {[%emt 0:00:19]} 30. h4 {[%emt 0:00:17]} Bc8 {[%emt 0:01:14]} 31. Qg3 {[%emt 0:00:29]} Re7 {[%emt 0:00:44]} 32. h5 {[%emt 0:00:53]} f5 {[%emt 0:00:09]} 33. Qe5 {[%emt 0:01:06]} Bxe6 {[%emt 0:00:36]} 34. dxe6 {[%emt 0:00:08]} Qg7 {[%emt 0:00:07]} 35. Qb8+ {[%emt 0:00:53]} Qf8 {[%emt 0:00:04]} 36. Qxf8+ {[%emt 0:00:10]} Kxf8 {[%emt 0:00:03]} 37. h6 {[%emt 0:00:09]} Re8 {[%emt 0:00:26]} 38. Ba4 {[%emt 0:00:11]} 1-0

[Event "Israeli U18-Team-ch 2024"]
[Site "Rishon LeZion"]
[Date "2024.08.01"]
[Round "1.13"]
[White "Ostrovsky Berman, Noam"]
[Black "Gabriel, Adam"]
[Result "0-1"]
[ECO "B41"]
[WhiteElo "2053"]
[BlackElo "2289"]
[Annotator "RC"]
[PlyCount "100"]
[EventDate "2024.08.01"]
[EventType "team-tourn"]
[EventCountry "ISR"]
[SourceTitle "playchess.com"]
[Source "ChessBase"]
[SourceQuality "1"]
[TimeControl "3000+10"]

1. e4 {[%emt 0:50:20]} c5 {[%emt 0:00:48]} 2. Nf3 {[%emt 0:00:00]} e6 {[%emt 0:00:09]} 3. d4 {[%emt 0:00:00]} cxd4 {[%emt 0:00:08]} 4. Nxd4 {[%emt 0:00:00]} a6 {[%emt 0:00:32]} 5. c4 {[%emt 0:00:00]} Qc7 {[%emt 0:02:40]} 6. Nc3 {[%emt 0:00:00]} Nf6 {[%emt 0:46:53]} 7. a3 {[%emt 0:00:00]} Nc6 {[%emt 0:00:00]} 8. Nxc6 {[%emt 0:00:00]} dxc6 {[%emt 0:00:00]} 9. Bd3 {[%emt 0:00:00]} Be7 {[%emt 0:00:00]} 10. O-O {[%emt 0:00:00]} e5 {[%emt 0:00:00]} 11. Qe2 {[%emt 0:00:00]} Bg4 {[%emt 0:00:00]} 12. f3 {[%emt 0:00:00]} Bc5+ {[%emt 0:00:00]} 13. Kh1 {[%emt 0:00:00]} Be6 {[%emt 0:00:00]} 14. Bg5 {[%emt 0:00:00]} Nh5 {[%emt 0:00:00]} 15. b4 {[%emt 0:00:00]} Bd4 {[%emt 0:00:00]} 16. Rac1 {[%emt 0:00:00]} f6 {[%emt 0:00:00]} 17. f4 {[%emt 0:00:00]} Nxf4 {[%emt 0:00:00]} 18. Bxf4 {[%emt 0:00:00]} exf4 {[%emt 0:00:00]} 19. Nd5 {[%emt 0:00:00]} Qd7 {[%emt 0:00:00]} 20. Nxf4 {[%emt 0:00:00]} Bg4 {[%emt 0:00:00]} 21. Qc2 {[%emt 0:00:00]} O-O-O {[%emt 0:00:00]} 22. Be2 {[%emt 0:00:00]} Bxe2 {[%emt 0:00:00]} 23. Qxe2 {[%emt 0:00:00]} Rhe8 {[%emt 0:00:00]} 24. b5 {[%emt 0:00:00]} f5 {[%emt 0:00:00]} 25. bxa6 {[%emt 0:00:00]} Rxe4 {[%emt 0:00:00]} 26. axb7+ {[%emt 0:00:00]} Qxb7 {[%emt 0:00:00]} 27. Qc2 {[%emt 0:00:00]} Qc7 {[%emt 0:00:00]} 28. Ne2 {[%emt 0:00:30]} g6 {[%emt 0:01:38]} 29. Rb1 {[%emt 0:00:47]} Bb6 {[%emt 0:00:48]} 30. c5 {[%emt 0:00:56]} Ba5 {[%emt 0:00:34]} 31. Ng3 {[%emt 0:02:47]} Red4 {[%emt 0:00:33]} 32. Qe2 {[%emt 0:00:00]} Qa7 {[%emt 0:00:29]} 33. Qe6+ {[%emt 0:00:00]} Qd7 {[%emt 0:00:05]} 34. Qe2 {[%emt 0:00:00]} Rd3 {[%emt 0:00:04]} 35. Qc2 {[%emt 0:00:12]} Rd2 {[%emt 0:00:06]} 36. Qc4 {[%emt 0:00:03]} Qd5 {[%emt 0:00:23]} 37. Qa6+ {[%emt 0:00:29]} Kd7 {[%emt 0:00:01]} 38. Qb7+ {[%emt 0:00:11]} Bc7 {[%emt 0:00:04]} 39. Rg1 {[%emt 0:00:25]} Rb8 {[%emt 0:00:09]} 40. Qxb8 {[%emt 0:00:00]} Bxb8 {[%emt 0:00:01]} 41. Rxb8 {[%emt 0:00:00]} Kc7 {[%emt 0:00:26]} 42. Rh8 {[%emt 0:00:11]} Qd7 {[%emt 0:00:06]} 43. Re1 {[%emt 0:00:01]} Rd1 {[%emt 0:00:05]} 44. Rhe8 {[%emt 0:00:02]} Qd2 {[%emt 0:00:21]} 45. R8e7+ {[%emt 0:00:24]} Kb8 {[%emt 0:00:01]} 46. Re8+ {[%emt 0:00:01]} Ka7 {[%emt 0:00:01]} 47. R8e7+ {[%emt 0:00:12]} Ka6 {[%emt 0:00:01]} 48. Rg1 {[%emt 0:00:00]} Rxg1+ {[%emt 0:00:06]} 49. Kxg1 {[%emt 0:00:01]} Qc1+ {[%emt 0:00:01]} 50. Kf2 {[%emt 0:00:02]} Qxc5+ {[%emt 0:00:01]} 0-1

[Event "Israeli U18-Team-ch 2024"]
[Site "Rishon LeZion"]
[Date "2024.08.01"]
[Round "1.14"]
[White "Forster, Michael C"]
[Black "Manyevich, Rom"]
[Result "0-1"]
[ECO "E24"]
[WhiteElo "2284"]
[BlackElo "2015"]
[Annotator "RC"]
[PlyCount "86"]
[EventDate "2024.08.01"]
[EventType "team-tourn"]
[EventCountry "ISR"]
[SourceTitle "playchess.com"]
[Source "ChessBase"]
[SourceQuality "1"]
[TimeControl "3000+10"]

1. d4 {[%emt 0:00:02]} Nf6 {[%emt 0:00:10]} 2. c4 {[%emt 0:00:05]} e6 {[%emt 0:00:05]} 3. Nc3 {[%emt 0:00:07]} Bb4 {[%emt 0:00:10]} 4. a3 {[%emt 0:00:45]} Bxc3+ {[%emt 0:00:05]} 5. bxc3 {[%emt 0:00:04]} Nc6 {[%emt 0:01:46]} 6. Qc2 {[%emt 0:02:47]} b6 {[%emt 0:00:30]} 7. e4 {[%emt 0:00:51]} Ba6 {[%emt 0:03:23]} 8. Bd3 {[%emt 0:07:28]} e5 {[%emt 0:11:53]} 9. d5 {[%emt 0:00:51]} Na5 {[%emt 0:00:47]} 10. Nf3 {[%emt 0:02:15]} Bxc4 {[%emt 0:04:18]} 11. Rb1 {[%emt 0:08:53]} Bxd3 {[%emt 0:00:37]} 12. Qxd3 {[%emt 0:00:09]} Qe7 {[%emt 0:03:55]} 13. O-O {[%emt 0:02:55]} Nb7 {[%emt 0:00:54]} 14. Be3 {[%emt 0:03:09]} O-O {[%emt 0:01:17]} 15. Rfe1 {[%emt 0:05:30]} Nd6 {[%emt 0:04:13]} 16. Bd2 {[%emt 0:03:53]} Nb7 {[%emt 0:05:21]} 17. Be3 {[%emt 0:00:51]} Rfe8 {[%emt 0:01:43]} 18. c4 {[%emt 0:04:14]} Nc5 {[%emt 0:00:32]} 19. Bxc5 {[%emt 0:00:02]} Qxc5 {[%emt 0:00:20]} 20. Rb5 {[%emt 0:00:11]} Qe7 {[%emt 0:01:30]} 21. c5 {[%emt 0:01:24]} bxc5 {[%emt 0:02:43]} 22. Reb1 {[%emt 0:00:12]} d6 {[%emt 0:00:23]} 23. Nd2 {[%emt 0:00:54]} Nd7 {[%emt 0:01:16]} 24. a4 {[%emt 0:01:00]} Rec8 {[%emt 0:01:33]} 25. Qh3 {[%emt 0:02:03]} Qe8 {[%emt 0:00:44]} 26. Nc4 {[%emt 0:02:26]} Rab8 {[%emt 0:01:39]} 27. Qa3 {[%emt 0:01:14]} a6 {[%emt 0:00:52]} 28. R5b3 {[%emt 0:00:21]} Rxb3 {[%emt 0:00:19]} 29. Rxb3 {[%emt 0:00:01]} Rb8 {[%emt 0:00:20]} 30. h3 {[%emt 0:00:01]} g6 {[%emt 0:00:23]} 31. Na5 {[%emt 0:00:28]} Rxb3 {[%emt 0:00:37]} 32. Qxb3 {[%emt 0:00:01]} Qb8 {[%emt 0:00:23]} 33. Qd3 {[%emt 0:00:01]} Qb4 {[%emt 0:00:38]} 34. Qxa6 {[%emt 0:00:03]} Qxe4 {[%emt 0:00:31]} 35. Qc8+ {[%emt 0:00:03]} Kg7 {[%emt 0:00:00]} 36. Qxd7 {[%emt 0:00:01]} Qe1+ {[%emt 0:00:00]} 37. Kh2 {[%emt 0:00:02]} Qxa5 {[%emt 0:00:00]} 38. Qc6 {[%emt 0:00:43]} Qb6 {[%emt 0:00:06]} 39. Qd7 {[%emt 0:00:08]} c4 {[%emt 0:00:11]} 40. Qg4 {[%emt 0:00:02]} c3 {[%emt 0:00:12]} 41. Qd1 {[%emt 0:00:39]} Qd4 {[%emt 0:00:09]} 42. Qc2 {[%emt 0:00:06]} Qf4+ {[%emt 0:00:11]} 43. g3 {[%emt 0:00:07]} Qd2 {[%emt 0:00:02]} 0-1

[Event "Israeli U18-Team-ch 2024"]
[Site "Rishon LeZion"]
[Date "2024.08.01"]
[Round "1.15"]
[White "Hermans, Ray"]
[Black "Gur, Alon"]
[Result "0-1"]
[ECO "B15"]
[WhiteElo "1926"]
[BlackElo "1745"]
[Annotator "RC"]
[PlyCount "76"]
[EventDate "2024.08.01"]
[EventType "team-tourn"]
[EventCountry "ISR"]
[SourceTitle "playchess.com"]
[Source "ChessBase"]
[SourceQuality "1"]
[TimeControl "3000+10"]

1. e4 {[%emt 0:00:04]} c6 {[%emt 0:00:02]} 2. d4 {[%emt 0:00:08]} d5 {[%emt 0:00:03]} 3. Nd2 {[%emt 0:00:05]} dxe4 {[%emt 0:00:04]} 4. Nxe4 {[%emt 0:00:07]} Nf6 {[%emt 0:00:04]} 5. Nxf6+ {[%emt 0:00:14]} exf6 {[%emt 0:00:06]} 6. c3 {[%emt 0:00:12]} Bd6 {[%emt 0:00:06]} 7. Bd3 {[%emt 0:00:06]} O-O {[%emt 0:00:04]} 8. Qc2 {[%emt 0:00:06]} Re8+ {[%emt 0:00:02]} 9. Ne2 {[%emt 0:00:05]} h5 {[%emt 0:00:03]} 10. O-O {[%emt 0:00:18]} h4 {[%emt 0:02:47]} 11. Bf4 {[%emt 0:00:31]} Bg4 {[%emt 0:06:06]} 12. f3 {[%emt 0:00:39]} Be6 {[%emt 0:01:07]} 13. Rae1 {[%emt 0:02:34]} b5 {[%emt 0:06:43]} 14. Bxd6 {[%emt 0:05:32]} Qxd6 {[%emt 0:00:05]} 15. Bh7+ {[%emt 0:00:40]} Kh8 {[%emt 0:00:38]} 16. Be4 {[%emt 0:02:30]} Nd7 {[%emt 0:01:17]} 17. g3 {[%emt 0:02:34]} Rac8 {[%emt 0:10:07]} 18. b3 {[%emt 0:12:09]} hxg3 {[%emt 0:07:12]} 19. hxg3 {[%emt 0:02:07]} g6 {[%emt 0:03:56]} 20. Kg2 {[%emt 0:01:03]} f5 {[%emt 0:01:08]} 21. Bd3 {[%emt 0:00:52]} Kg7 {[%emt 0:00:05]} 22. Nf4 {[%emt 0:01:06]} Nf6 {[%emt 0:00:18]} 23. Re5 {[%emt 0:01:56]} b4 {[%emt 0:02:09]} 24. Rfe1 {[%emt 0:06:08]} Bd7 {[%emt 0:00:09]} 25. cxb4 {[%emt 0:02:07]} Qxd4 {[%emt 0:00:52]} 26. Rxe8 {[%emt 0:00:05]} Rxe8 {[%emt 0:00:26]} 27. Rxe8 {[%emt 0:01:36]} Bxe8 {[%emt 0:00:04]} 28. Bc4 {[%emt 0:00:06]} Nd5 {[%emt 0:00:28]} 29. Bxd5 {[%emt 0:00:50]} cxd5 {[%emt 0:00:05]} 30. Qc7 {[%emt 0:00:22]} Qd2+ {[%emt 0:00:48]} 31. Kh3 {[%emt 0:00:29]} Bb5 {[%emt 0:01:05]} 32. Qe5+ {[%emt 0:00:19]} Kh7 {[%emt 0:00:22]} 33. Qe7 {[%emt 0:01:57]} Bf1+ {[%emt 0:00:46]} 34. Kh4 {[%emt 0:00:01]} Qh2+ {[%emt 0:00:07]} 35. Kg5 {[%emt 0:00:03]} Qh6+ {[%emt 0:00:20]} 36. Kf6 {[%emt 0:00:06]} Qg7+ {[%emt 0:00:16]} 37. Kg5 {[%emt 0:00:12]} f6+ {[%emt 0:00:09]} 38. Qxf6 {[%emt 0:00:12]} Qh6# {[%emt 0:00:06]} 0-1

[Event "Israeli U18-Team-ch 2024"]
[Site "Rishon LeZion"]
[Date "2024.08.01"]
[Round "1.16"]
[White "Versano, Meitar"]
[Black "Tauber, Ori"]
[Result "1/2-1/2"]
[ECO "C11"]
[WhiteElo "1639"]
[BlackElo "1741"]
[Annotator "NA RC"]
[PlyCount "101"]
[EventDate "2024.08.01"]
[EventType "team-tourn"]
[EventCountry "ISR"]
[SourceTitle "playchess.com"]
[Source "ChessBase"]
[SourceQuality "1"]
[TimeControl "3000+10"]

1. e4 {[%emt 0:00:04]} e6 {[%emt 0:00:01]} 2. Nc3 {[%emt 0:00:09]} d5 {[%emt 0:00:02]} 3. Nf3 {[%emt 0:00:10]} Nf6 {[%emt 0:01:45]} 4. e5 {[%emt 0:00:06]} Nfd7 {[%emt 0:00:10]} 5. d4 {[%emt 0:00:10]} c5 {[%emt 0:00:23]} 6. dxc5 {[%emt 0:00:07]} Bxc5 {[%emt 0:02:17]} 7. Bd3 {[%emt 0:00:11]} Nc6 {[%emt 0:02:07]} 8. Bf4 {[%emt 0:00:13]} h6 {[%emt 0:06:43]} 9. h4 {[%emt 0:02:42]} Qc7 {[%emt 0:02:07]} 10. Qe2 {[%emt 0:01:00]} a6 {[%emt 0:03:27]} 11. a4 {[%emt 0:03:45]} Nd4 {[%emt 0:03:23]} 12. Nxd4 {[%emt 0:08:36]} Bxd4 {[%emt 0:00:03]} 13. Qg4 {[%emt 0:00:53]} Nxe5 {[%emt 0:03:01]} 14. Qg3 {[%emt 0:02:28]} Nxd3+ {[%emt 0:00:43]} 15. cxd3 {[%emt 0:00:33]} Bxc3+ {[%emt 0:00:44]} 16. bxc3 {[%emt 0:00:26]} Qxc3+ {[%emt 0:00:29]} 17. Ke2 {[%emt 0:00:43]} Qb2+ {[%emt 0:02:14]} 18. Kf3 {[%emt 0:02:37]} Qf6 {[%emt 0:04:11]} 19. Rhe1 {[%emt 0:04:46]} Bd7 {[%emt 0:03:14]} 20. Ke2 {[%emt 0:02:43]} Qg6 {[%emt 0:02:28]} 21. Qxg6 {[%emt 0:01:37]} fxg6 {[%emt 0:00:02]} 22. Rac1 {[%emt 0:01:18]} O-O {[%emt 0:00:49]} 23. Bd6 {[%emt 0:01:20]} Rfc8 {[%emt 0:00:18]} 24. a5 {[%emt 0:00:35]} Kf7 {[%emt 0:01:53]} 25. Ke3 {[%emt 0:00:41]} Ba4 {[%emt 0:01:50]} 26. Kd4 {[%emt 0:01:02]} Bc2 {[%emt 0:00:28]} 27. Re2 {[%emt 0:01:59]} Ba4 {[%emt 0:00:50]} 28. Ree1 {[%emt 0:01:08]} Bb5 {[%emt 0:00:56]} 29. Rxc8 {[%emt 0:07:56]} Rxc8 {[%emt 0:00:06]} 30. Re3 {[%emt 0:00:06]} g5 {[%emt 0:04:34]} 31. hxg5 {[%emt 0:00:12]} hxg5 {[%emt 0:00:03]} 32. Rg3 {[%emt 0:00:24]} Rc2 {[%emt 0:00:28]} 33. Rxg5 {[%emt 0:01:36]} Rxf2 {[%emt 0:00:26]} 34. Be5 {[%emt 0:00:11]} g6 {[%emt 0:00:11]} 35. Rg3 {[%emt 0:00:32]} Rf5 {[%emt 0:00:54]} 36. Rf3 {[%emt 0:01:15]} g5 {[%emt 0:01:12]} 37. Rxf5+ {[%emt 0:01:27]} exf5 {[%emt 0:00:02]} 38. g3 {[%emt 0:00:31]} Kg6 {[%emt 0:00:19]} 39. Kxd5 {[%emt 0:00:08]} Bxd3 {[%emt 0:00:01]} 40. Kd4 {[%emt 0:00:05]} Be4 {[%emt 0:00:05]} 41. Ke3 {[%emt 0:00:18]} Kh5 {[%emt 0:02:01]} 42. Bc7 {[%emt 0:00:07]} Kg4 {[%emt 0:00:00]} 43. Kf2 {[%emt 0:00:01]} Bc6 {[%emt 0:00:00]} 44. Bd6 {[%emt 0:00:05]} f4 {[%emt 0:00:00]} 45. gxf4 {[%emt 0:00:01]} gxf4 {[%emt 0:00:00]} 46. Bc5 {[%emt 0:00:09]} b5 {[%emt 0:00:00]} 47. axb6 {[%emt 0:00:11]} a5 {[%emt 0:00:00]} 48. Bd6 {[%emt 0:00:23]} Kf5 {[%emt 0:00:00]} 49. Bxf4 {[%emt 0:00:25]} a4 {[%emt 0:00:25]} 50. Bd6 {[%emt 0:00:08]} Ke6 {[%emt 0:00:08]} 51. Ba3 {[%emt 0:00:05]} 1/2-1/2

[Event "Israeli U18-Team-ch 2024"]
[Site "Rishon LeZion"]
[Date "2024.08.01"]
[Round "2.1"]
[White "Laor, Jason Ethan"]
[Black "Vagman, Roy"]
[Result "0-1"]
[ECO "B50"]
[WhiteElo "1841"]
[BlackElo "2308"]
[Annotator "RC"]
[PlyCount "60"]
[EventDate "2024.08.01"]
[EventType "team-tourn"]
[EventCountry "ISR"]
[SourceTitle "playchess.com"]
[Source "ChessBase"]
[SourceQuality "1"]
[TimeControl "3000+10"]

1. e4 {[%emt 0:00:13]} c5 {[%emt 0:00:12]} 2. Nf3 {[%emt 0:00:14]} d6 {[%emt 0:00:18]} 3. c3 {[%emt 0:02:01]} Nf6 {[%emt 0:00:54]} 4. Be2 {[%emt 0:00:05]} g6 {[%emt 0:00:06]} 5. O-O {[%emt 0:00:08]} Bg7 {[%emt 0:00:03]} 6. Bb5+ {[%emt 0:00:05]} Nc6 {[%emt 0:00:29]} 7. Re1 {[%emt 0:00:08]} Bg4 {[%emt 0:04:39]} 8. d4 {[%emt 0:05:52]} cxd4 {[%emt 0:01:08]} 9. cxd4 {[%emt 0:00:15]} Nd7 {[%emt 0:00:29]} 10. Be3 {[%emt 0:04:27]} O-O {[%emt 0:02:25]} 11. Nc3 {[%emt 0:00:48]} a6 {[%emt 0:04:46]} 12. Be2 {[%emt 0:03:17]} Bxf3 {[%emt 0:04:33]} 13. Bxf3 {[%emt 0:02:18]} e5 {[%emt 0:00:34]} 14. dxe5 {[%emt 0:03:48]} dxe5 {[%emt 0:01:59]} 15. g3 {[%emt 0:08:25]} Nd4 {[%emt 0:00:26]} 16. Bxd4 {[%emt 0:01:06]} exd4 {[%emt 0:00:01]} 17. Nd5 {[%emt 0:00:09]} Rc8 {[%emt 0:01:10]} 18. Qd2 {[%emt 0:00:47]} Ne5 {[%emt 0:00:43]} 19. Bg2 {[%emt 0:00:01]} Nc4 {[%emt 0:03:27]} 20. Qb4 {[%emt 0:00:08]} Re8 {[%emt 0:01:43]} 21. Rac1 {[%emt 0:01:11]} b5 {[%emt 0:00:46]} 22. b3 {[%emt 0:00:32]} Bf8 {[%emt 0:00:15]} 23. Rxc4 {[%emt 0:02:50]} Bxb4 {[%emt 0:00:27]} 24. Rxb4 {[%emt 0:00:08]} Qxd5 {[%emt 0:01:08]} 25. exd5 {[%emt 0:00:06]} Rxe1+ {[%emt 0:00:03]} 26. Bf1 {[%emt 0:00:06]} Rcc1 {[%emt 0:00:18]} 27. d6 {[%emt 0:00:05]} Rxf1+ {[%emt 0:00:05]} 28. Kg2 {[%emt 0:00:03]} Rg1+ {[%emt 0:00:05]} 29. Kh3 {[%emt 0:00:43]} Rc8 {[%emt 0:00:11]} 30. Rxd4 {[%emt 0:00:28]} Rd8 {[%emt 0:00:04]} 0-1